bitfinex/quotes_ETHUSD_20240902
["timestamp","ask_amount","ask_price","bid_price","bid_amount"]
[1725313095189,3.13719,2550.1,2549.5,3.13779]
[1725313095404,2.3737,2550.2,2549.4,0.70590583]
[1725313095564,2.3737,2550.2,2549.6,3.20860519]
[1725313095904,2.3737,2550.2,2549.7,3.20838613]
[1725313097388,3.13694,2550.3,2549.7,3.20838613]
[1725313097896,3.92235985,2550.3,2549.7,3.20838613]
[1725313098387,3.92235985,2550.3,2549.8,3.13745]
[1725313098547,5.42372,2550.5,2549.9,3.13734]
[1725313098744,3.0,2550.4,2549.9,3.20679939]
[1725313098946,4.456025,2550.4,2549.9,3.20679939]
[1725313099246,3.0,2550.4,2549.9,3.20674939]
[1725313099383,3.0,2550.4,2550.0,3.13722]
[1725313099582,2.287,2550.5,2550.0,3.13722]
[1725313099583,5.287,2550.5,2550.0,3.13722]
[1725313099783,8.42364,2550.5,2550.1,0.06925253]
[1725313099984,6.443011,2550.5,2550.1,0.06925253]
[1725313100166,6.443011,2550.5,2550.0,3.13725]
[1725313100371,2.287,2550.5,2550.2,0.06905947]
[1725313100682,2.287,2550.5,2550.3,0.06895607]
[1725313100867,2.287,2550.5,2550.0,3.13725]
[1725313101063,2.287,2550.5,2550.1,0.06916289]
[1725313102101,2.287,2550.5,2550.1,3.20628289]
[1725313103990,2.287,2550.5,2550.1,6.34340289]
[1725313104255,3.13653,2550.6,2550.1,3.20622289]
[1725313104482,3.13653,2550.6,2550.1,3.90332258]
[1725313104906,2.3843,2550.8,2550.3,3.13677]
[1725313105210,2.3843,2550.8,2550.4,3.13673]
[1725313105406,2.3843,2550.8,2550.4,3.20543702]
[1725313105866,3.13584,2551.2,2550.5,2.3653]
[1725313106077,3.13584,2551.2,2550.6,0.06850025]
[1725313106994,3.13584,2551.2,2550.7,3.13632]
[1725313107506,3.13584,2551.2,2550.8,0.06808069]
[1725313107719,3.13584,2551.2,2550.7,3.13632]
[1725313107874,3.13584,2551.2,2550.9,0.06797733]
[1725313108212,5.59797,2551.3,2550.7,6.27263]
[1725313108411,2.4623,2551.3,2551.0,0.06787398]
[1725313108585,2.4623,2551.3,2550.8,3.13623]
[1725313108767,2.4623,2551.3,2551.1,0.06777064]
[1725313108972,2.4623,2551.3,2550.9,3.13614]
[1725313109195,5.59795,2551.3,2551.2,0.0676673]
[1725313109414,2.4623,2551.3,2550.8,3.13627]
[1725313109615,2.4623,2551.3,2551.2,0.0676673]
[1725313109823,5.59795,2551.3,2550.8,3.13627]
[1725313110120,5.59795,2551.3,2550.8,3.45773754]
[1725313110284,2.4623,2551.3,2550.8,3.45773754]
[1725313110699,2.4623,2551.3,2550.9,0.06797733]
[1725313111831,5.59796,2551.3,2550.9,0.06797733]
[1725313112335,5.59796,2551.3,2551.0,0.06726348]
[1725313112691,5.59796,2551.3,2550.6,4.06372807]
[1725313113034,3.13577,2551.2,2550.7,3.13637]
[1725313113418,3.13577,2551.2,2550.8,0.06747019]
[1725313113822,3.13577,2551.2,2550.6,4.06370807]
[1725313113992,3.13577,2551.2,2550.9,0.06736683]
[1725313114193,3.13577,2551.2,2550.7,0.70632288]
[1725313114396,3.13577,2551.2,2551.0,0.06726348]
[1725313114632,3.13577,2551.2,2550.7,0.70632288]
[1725313114801,3.13577,2551.2,2551.1,0.06716014]
[1725313115129,3.13577,2551.2,2550.7,0.70632288]
[1725313115130,3.13577,2551.2,2550.7,3.13638]
[1725313115433,8.73369,2551.3,2550.7,4.06361407]
[1725313115639,5.59796,2551.3,2550.8,0.06747019]
[1725313116047,2.4623,2551.3,2550.9,3.13608]
[1725313116256,6.13548,2551.5,2551.0,0.32035502]
[1725313116401,6.13548,2551.5,2551.0,0.06726348]
[1725313116601,3.13555,2551.4,2551.0,0.06726348]
[1725313118901,3.0,2551.5,2551.0,0.06726348]
[1725313119219,3.13605,2551.0,2550.5,2.3653]
[1725313119420,3.13605,2551.0,2550.6,0.61361907]
[1725313120023,3.13586,2551.2,2550.6,0.61361907]
[1725313120219,3.13592,2551.1,2550.6,3.13646]
[1725313120621,3.13689,2550.3,2549.8,3.13743]
[1725313120955,6.13606,2551.0,2549.4,5.54877]
[1725313120956,2.4563,2550.1,2549.4,5.54877]
[1725313121108,5.5935,2550.1,2549.4,8.68668]
[1725313121452,5.5935,2550.1,2549.0,5.54787]
[1725313121453,3.13781,2549.6,2549.0,5.54787]
[1725313121743,3.13781,2549.6,2549.1,2.552787]
[1725313121959,3.13781,2549.6,2549.0,3.13837]
[1725313122945,3.13781,2549.6,2549.1,3.13827]
[1725313130950,3.13756,2549.8,2549.2,3.13821]
[1725313131453,3.13805,2549.4,2548.8,3.13865]
[1725313131749,3.13815,2549.3,2548.8,4.10968603]
[1725313131951,5.41105,2549.4,2548.6,3.13887]
[1725313131952,3.1383,2549.2,2548.6,3.13887]
[1725313132113,3.1383,2549.2,2548.7,3.51566607]
[1725313132729,3.13815,2549.3,2548.7,3.51566607]
[1725313133917,3.13815,2549.3,2548.8,3.13872]
[1725313134163,3.13815,2549.3,2548.9,0.06275202]
[1725313137168,5.46815,2549.2,2548.9,0.06275202]
[1725313137452,5.46815,2549.2,2548.6,3.13887]
[1725313137830,5.46815,2549.2,2548.7,0.06314374]
[1725313138035,3.13844,2549.1,2548.7,0.06314374]
[1725313138858,5.46815,2549.2,2548.7,0.06314374]
[1725313138859,3.1385,2549.0,2548.7,0.06314374]
[1725313139355,3.1385,2549.0,2548.8,0.06309618]
[1725313139741,3.1385,2549.0,2548.9,0.06306542]
[1725313140446,3.1385,2549.0,2548.5,3.13909]
[1725313140758,3.1385,2549.0,2548.9,0.06306542]
[1725313140958,3.1385,2549.0,2548.2,2.4188]
[1725313141166,3.13865,2548.9,2548.3,3.264348]
[1725313141465,3.13865,2548.9,2548.4,0.06178108]
[1725313141670,3.13865,2548.9,2548.4,0.95020899]
[1725313142363,3.13865,2548.9,2548.4,4.08941899]
[1725313144072,2.2525,2548.8,2548.4,4.08941899]
[1725313144356,5.39115,2548.9,2548.4,3.20099108]
[1725313145761,3.13836,2549.1,2548.6,3.13896]
[1725313145969,5.3908,2549.2,2548.7,0.06148163]
[1725313146143,3.13868,2548.9,2548.4,3.13921]
[1725313146349,3.13868,2548.9,2548.5,0.06176697]
[1725313146890,3.13843,2549.1,2548.6,3.13897]
[1725313147052,3.13843,2549.1,2548.6,4.0868737]
[1725313147253,3.13843,2549.1,2548.7,0.06152076]
[1725313147445,3.13805,2549.4,2548.8,3.13864]
[1725313147694,6.832795,2549.4,2548.9,3.13855]
[1725313147994,6.832795,2549.4,2548.9,0.06128017]
[1725313148977,3.13812,2549.3,2548.9,0.06128017]
[1725313149755,3.694735,2549.4,2548.9,3.19988017]
[1725313149987,3.694735,2549.4,2548.9,0.06128017]
[1725313150791,3.13805,2549.4,2548.9,3.19979017]
[1725313151755,3.13812,2549.3,2548.9,0.06128017]
[1725313154061,6.27632,2549.3,2548.9,0.06128017]
[1725313154246,3.13812,2549.3,2548.9,0.06128017]
[1725313154451,3.1383,2549.2,2548.9,0.06128017]
[1725313154674,3.13812,2549.3,2548.9,0.06128017]
[1725313154903,3.13812,2549.3,2548.8,3.13872]
[1725313155262,3.13812,2549.3,2548.9,0.05909507]
[1725313155720,3.13812,2549.3,2548.9,3.19768507]
[1725313155853,5.56675,2549.5,2548.9,0.05909507]
[1725313155854,3.13799,2549.4,2548.9,0.05909507]
[1725313156297,3.13799,2549.4,2548.9,0.43323138]
[1725313157697,3.13795,2549.5,2548.9,0.43323138]
[1725313157997,3.13774,2549.6,2549.1,3.13835]
[1725313158151,3.13774,2549.6,2549.2,0.05878456]
[1725313158349,3.13774,2549.6,2549.2,0.93520502]
[1725313158966,3.13774,2549.6,2549.2,4.07342502]
[1725313159180,3.13774,2549.6,2549.2,0.93520502]
[1725313161300,3.13774,2549.6,2549.2,0.05878456]
[1725313165063,3.13788,2549.5,2549.2,0.05878456]
[1725313165818,3.13788,2549.5,2549.0,3.13844]
[1725313166402,3.13788,2549.5,2549.1,0.05874275]
[1725313170581,3.13788,2549.5,2549.1,3.19710275]
[1725313171465,3.13788,2549.5,2549.1,0.05874275]
[1725313171997,3.13814,2549.3,2549.1,0.05874275]
[1725313172306,3.13814,2549.3,2548.7,9.179968]
[1725313172307,3.13823,2549.2,2548.7,6.041188]
[1725313172513,3.13836,2549.1,2548.7,2.902418]
[1725313173774,3.13836,2549.1,2548.6,19.98]
[1725313174189,3.13854,2549.0,2548.6,19.98]
[1725313174377,3.13854,2549.0,2548.5,3.1391]
[1725313175709,3.13867,2548.9,2548.4,3.13922]
[1725313175910,5.61174,2549.0,2548.4,3.87987213]
[1725313176587,5.61174,2549.0,2548.5,3.13908]
[1725313177400,5.61174,2549.0,2548.6,0.05189644]
[1725313183614,3.13831,2549.2,2548.8,0.05168937]
[1725313184335,3.13794,2549.5,2548.8,0.13015228]
[1725313184648,3.13778,2549.6,2549.1,3.13835]
[1725313184817,5.48155,2549.8,2549.2,3.81718734]
[1725313185003,8.61912,2549.8,2549.2,3.81718734]
[1725313185203,3.13764,2549.7,2549.2,3.81718734]
[1725313185948,3.13764,2549.7,2549.2,3.765912]
[1725313186342,3.13764,2549.7,2549.3,0.05123892]
[1725313186856,3.13764,2549.7,2549.4,0.05113544]
[1725313187148,3.13764,2549.7,2549.2,3.765912]
[1725313187608,3.13764,2549.7,2549.3,0.05105448]
[1725313187804,3.13764,2549.7,2549.2,3.765912]
[1725313188044,3.13764,2549.7,2549.3,0.05105448]
[1725313188259,3.13764,2549.7,2549.2,3.765912]
[1725313188416,3.13764,2549.7,2549.3,0.05105448]
[1725313188621,3.13764,2549.7,2549.2,3.765912]
[1725313188957,3.13764,2549.7,2549.3,0.05105448]
[1725313189309,5.48155,2549.8,2549.2,6.27639]
[1725313189508,5.48155,2549.8,2549.4,0.050951]
[1725313189715,8.61916,2549.8,2549.3,0.05105448]
[1725313190029,8.61916,2549.8,2549.4,0.050951]
[1725313190241,8.61916,2549.8,2549.2,3.13816]
[1725313190445,8.61916,2549.8,2549.3,0.05105448]
[1725313190648,3.13733,2550.0,2549.4,3.13792]
[1725313190842,6.27466,2550.0,2549.5,0.05084753]
[1725313191155,3.13733,2550.0,2549.5,3.18868753]
[1725313192458,3.13733,2550.0,2549.5,4.05482828]
[1725313193020,3.13732,2550.0,2549.5,4.05482828]
[1725313193893,3.13709,2550.2,2549.7,3.13755]
[1725313194161,3.13682,2550.4,2549.6,5.52815]
[1725313194455,6.13695,2550.3,2549.8,3.13747]
[1725313194660,6.13695,2550.3,2549.9,0.05025492]
[1725313196041,3.13658,2550.6,2550.1,3.13709]
[1725313196250,2.4797,2550.7,2550.2,0.58890806]
[1725313196432,5.61611,2550.7,2550.2,3.18691906]
[1725313196622,2.4797,2550.7,2550.2,3.18691906]
[1725313197473,5.61609,2550.7,2550.2,3.18691906]
[1725313197784,5.61609,2550.7,2550.2,4.05243114]
[1725313198092,3.1359,2551.1,2550.6,3.1365]
[1725313198385,3.1359,2551.2,2550.6,3.1365]
[1725313198685,3.13584,2551.2,2550.7,0.04863434]
[1725313198987,2.4094,2551.3,2550.8,3.13624]
[1725313199136,5.54507,2551.3,2550.8,3.13624]
[1725313199492,5.54507,2551.3,2550.9,0.04842762]
[1725313200279,3.1356,2551.4,2550.9,0.04842762]
[1725313200588,3.1356,2551.4,2550.9,3.18454762]
[1725313200754,5.4448,2551.6,2550.9,0.04842762]
[1725313200974,3.13664,2550.5,2549.9,2.4524]
[1725313201206,3.13664,2550.5,2549.9,5.58966]
[1725313201504,3.13664,2550.5,2550.0,0.04910688]
[1725313201685,3.13664,2550.5,2550.0,3.18634688]
[1725313201887,6.27335,2550.5,2550.0,0.04910688]
[1725313202092,6.27335,2550.5,2550.0,0.61298357]
[1725313202294,6.27334,2550.5,2550.0,0.61298357]
[1725313202615,6.27334,2550.5,2550.0,3.75022357]
[1725313202616,3.13664,2550.5,2550.0,3.75022357]
[1725313204119,3.13664,2550.5,2550.0,0.61298357]
[1725313204282,3.13664,2550.5,2550.1,0.62026436]
[1725313204656,6.27294,2550.7,2550.2,0.04649613]
[1725313205013,3.13653,2550.6,2550.2,0.04649613]
[1725313206320,3.13653,2550.6,2550.2,0.42688318]
[1725313207878,3.13664,2550.5,2550.2,0.42688318]
[1725313208107,3.13664,2550.5,2550.2,0.04649613]
[1725313208314,3.13654,2550.6,2550.2,0.04649613]
[1725313210285,6.27295,2550.7,2550.2,0.04649613]
[1725313210686,3.13651,2550.6,2550.2,0.04649613]
[1725313211121,3.13683,2550.4,2550.2,0.04649613]
[1725313211623,3.13683,2550.4,2550.3,0.04615257]
[1725313211827,3.13683,2550.4,2549.9,3.13726]
[1725313212338,3.13683,2550.4,2550.0,0.04517003]
[1725313214085,2.4769,2550.5,2550.0,0.04517003]
[1725313214086,3.13688,2550.3,2550.0,0.04517003]
[1725313214430,3.13676,2550.4,2550.1,0.04510008]
[1725313214597,3.13676,2550.4,2549.9,3.13733]
[1725313214803,3.13676,2550.4,2550.0,0.0452035]
[1725313215385,6.27426,2550.1,2550.0,0.0452035]
[1725313215622,3.13734,2550.0,2549.4,3.13797]
[1725313215833,3.13734,2550.0,2549.5,0.04574306]
[1725313216039,3.13734,2550.0,2549.5,3.18360306]
[1725313216611,3.13743,2549.9,2549.5,0.04574306]
[1725313216823,5.58933,2549.9,2549.3,5.54032]
[1725313217020,5.58933,2549.9,2549.4,0.04593023]
[1725313220428,2.4519,2549.9,2549.4,0.04593023]
[1725313221241,2.4519,2549.9,2549.4,3.18384023]
[1725313222133,5.38947,2550.2,2549.5,3.13786]
[1725313222337,5.38947,2550.2,2549.7,3.13761]
[1725313222703,5.38947,2550.2,2549.8,0.04603539]
[1725313224953,2.2524,2550.2,2549.8,0.04603539]
[1725313226661,6.494856,2550.4,2549.8,3.18346539]
[1725313227018,6.494856,2550.4,2549.9,3.13736]
[1725313227365,5.61983,2550.4,2550.0,0.04582852]
[1725313228019,5.39418,2550.6,2550.0,0.04582852]
[1725313228222,3.0,2550.5,2550.0,3.50133137]
[1725313229169,3.0,2550.5,2550.0,3.18301852]
[1725313230371,3.0,2550.5,2550.1,3.13713]
[1725313230527,3.13646,2550.7,2550.1,6.27416]
[1725313230734,3.13646,2550.7,2550.2,0.04544309]
[1725313231787,3.13646,2550.7,2550.2,0.08570593]
[1725313232389,3.13652,2550.6,2550.2,0.08570593]
[1725313237785,3.13652,2550.6,2550.3,0.08544363]
[1725313238217,3.13652,2550.6,2550.1,3.13711]
[1725313238731,6.2731,2550.6,2550.2,0.08554862]
[1725313239029,4.063807,2550.6,2550.2,0.08554862]
[1725313239730,3.13652,2550.6,2550.2,0.08554862]
[1725313245442,3.13591,2551.1,2550.2,0.08554862]
[1725313245443,3.13587,2551.2,2550.6,3.13642]
[1725313245753,3.13587,2551.2,2550.2,1.81805722]
[1725313245754,5.56871,2551.4,2550.8,2.3294]
[1725313245925,5.56871,2551.4,2550.9,3.13608]
[1725313245926,3.13561,2551.4,2550.9,3.13608]
[1725313246132,3.13561,2551.4,2550.9,6.35690249]
[1725313246508,3.13561,2551.4,2550.9,3.22082249]
[1725313247047,3.0,2551.3,2550.9,3.22082249]
[1725313247260,3.0,2551.3,2550.9,6.35690249]
[1725313247424,3.0,2551.3,2550.9,4.08945274]
[1725313252711,8.53014,2551.6,2550.9,4.08945274]
[1725313252938,3.0,2551.5,2550.9,4.08945274]
[1725313253256,3.0,2551.5,2551.0,0.64972504]
[1725313253415,3.1356,2551.4,2551.1,0.08094754]
[1725313255040,6.27121,2551.4,2551.1,0.08094754]
[1725313255270,3.1356,2551.4,2551.1,0.08094754]
[1725313255457,3.1356,2551.4,2551.1,0.55448482]
[1725313259880,6.27121,2551.4,2551.1,0.55448482]
[1725313260697,3.1356,2551.4,2551.1,0.08094754]
[1725313260858,3.1356,2551.4,2550.9,3.21446491]
[1725313261183,3.1356,2551.4,2551.0,0.08101344]
[1725313262782,6.27119,2551.4,2551.0,0.08101344]
[1725313262955,3.13559,2551.4,2551.0,0.08101344]
[1725313263286,3.13559,2551.4,2551.0,0.81675214]
[1725313264043,6.2712,2551.4,2551.0,0.81675214]
[1725313265344,3.13559,2551.4,2551.0,0.81675214]
[1725313268300,3.13559,2551.4,2551.1,2.4669]
[1725313268599,3.13559,2551.4,2551.2,0.08032546]
[1725313270767,3.13534,2551.6,2551.2,0.08032546]
[1725313271006,3.13534,2551.6,2551.2,0.40862188]
[1725313274769,6.2707,2551.6,2551.2,0.40862188]
[1725313275182,3.13534,2551.6,2551.2,0.40862188]
[1725313276112,6.2707,2551.6,2551.2,0.40862188]
[1725313276286,3.13534,2551.6,2551.2,0.08032546]
[1725313276674,6.27075,2551.6,2551.2,0.08032546]
[1725313277820,3.13542,2551.5,2551.2,0.08032546]
[1725313287589,3.13534,2551.6,2551.2,0.08032546]
[1725313291432,3.13555,2551.4,2551.2,0.08032546]
[1725313291812,3.13555,2551.4,2551.0,2.3041]
[1725313292049,3.13555,2551.4,2551.3,0.07950827]
[1725313292557,3.13555,2551.4,2551.0,2.3041]
[1725313292756,3.13555,2551.4,2551.1,0.0797181]
[1725313297217,3.13541,2551.5,2551.1,0.0797181]
[1725313305752,2.4311,2551.4,2551.1,0.0797181]
[1725313306061,3.13577,2551.2,2550.7,3.13639]
[1725313306878,3.13577,2551.2,2550.6,6.27302]
[1725313307048,3.13592,2551.1,2550.6,4.78956915]
[1725313307258,5.49822,2551.1,2550.6,7.92601915]
[1725313308238,5.49822,2551.1,2550.6,4.78950915]
[1725313309841,5.49822,2551.1,2550.6,7.92595915]
[1725313312238,5.49822,2551.1,2550.7,0.07762486]
[1725313312553,3.13592,2551.1,2550.7,0.07762486]
[1725313313636,3.13592,2551.1,2550.7,3.21399486]
[1725313313833,3.13592,2551.1,2550.7,5.23029304]
[1725313314888,3.13578,2551.2,2550.7,5.23029304]
[1725313316763,3.1359,2551.1,2550.7,0.07762486]
[1725313316963,3.13578,2551.2,2550.7,3.21400486]
[1725313317172,5.51407,2551.3,2550.7,0.07762486]
[1725313317367,2.3783,2551.3,2550.9,3.13606]
[1725313317568,2.3783,2551.3,2551.0,0.07740458]
[1725313318769,2.3783,2551.3,2550.8,6.2724]
[1725313318972,2.3783,2551.3,2550.9,3.13614]
[1725313319204,2.3783,2551.3,2551.0,0.07741014]
[1725313320093,6.27173,2551.2,2551.0,0.07741014]
[1725313320392,6.27173,2551.2,2550.6,8.0053786]
[1725313320558,3.13585,2551.2,2551.1,0.07731634]
[1725313320759,6.27171,2551.2,2550.6,9.84861338]
[1725313321003,3.13585,2551.2,2550.7,0.07773609]
[1725313321297,6.27169,2551.2,2550.7,2.03076104]
[1725313321669,3.13596,2551.1,2550.7,0.07773609]
[1725313321863,3.13584,2551.2,2550.7,0.07773609]
[1725313322606,2.3178,2550.9,2550.7,0.07773609]
[1725313322762,5.999383,2550.9,2550.7,0.07773609]
[1725313322964,5.454,2550.9,2550.5,7.28]
[1725313323158,5.454,2550.9,2550.6,0.07788555]
[1725313323371,5.454,2550.9,2550.4,3.13668]
[1725313323568,5.454,2550.9,2550.5,0.07799051]
[1725313326179,3.13629,2550.8,2550.5,0.07799051]
[1725313326360,3.13629,2550.8,2550.3,3.13688]
[1725313326562,3.13629,2550.8,2550.4,0.07809548]
[1725313326961,6.27265,2550.8,2550.4,0.07809548]
[1725313327176,6.27265,2550.8,2550.2,35.86815]
[1725313327496,6.27265,2550.8,2550.3,0.07596886]
[1725313327706,6.27263,2550.8,2550.3,0.07596886]
[1725313327869,6.27263,2550.8,2550.2,39.88308556]
[1725313328204,6.27263,2550.8,2550.3,0.07596886]
[1725313328566,6.27263,2550.8,2550.2,39.88308556]
[1725313328567,6.27263,2550.8,2550.2,36.74615556]
[1725313328786,6.27263,2550.8,2550.3,0.07596886]
[1725313329016,6.27263,2550.8,2550.2,39.88308556]
[1725313329290,6.27263,2550.8,2550.4,0.07586388]
[1725313329485,3.995333,2550.8,2550.3,0.07596886]
[1725313329726,3.13652,2550.6,2550.5,0.07575891]
[1725313330231,3.13652,2550.6,2550.1,3.13706]
[1725313330383,3.13652,2550.6,2550.5,0.07575891]
[1725313330588,3.13652,2550.6,2550.1,4.16893986]
[1725313330784,3.13652,2550.6,2550.2,0.07607385]
[1725313336114,6.2731,2550.6,2550.2,0.07607385]
[1725313337212,3.13665,2550.5,2550.2,0.07607385]
[1725313339310,3.13665,2550.5,2550.0,4.8697386]
[1725313339647,3.13665,2550.5,2550.1,0.07617885]
[1725313341245,2.4886,2550.4,2550.1,0.07617885]
[1725313341423,5.62539,2550.4,2550.1,0.07617885]
[1725313341757,5.62539,2550.4,2549.9,7.1819786]
[1725313341963,5.62539,2550.4,2550.2,0.07630715]
[1725313342145,2.4886,2550.4,2550.0,3.13722]
[1725313342323,2.4886,2550.4,2550.3,0.07620216]
[1725313342924,2.4886,2550.4,2550.0,3.13722]
[1725313343147,2.4886,2550.4,2550.0,4.16913986]
[1725313343623,2.4886,2550.4,2550.1,0.07641215]
[1725313349279,5.62536,2550.4,2550.1,0.07641215]
[1725313349486,5.5862,2550.2,2550.1,0.07641215]
[1725313349652,6.14482,2550.2,2550.1,0.07641215]
[1725313349859,2.4492,2550.1,2549.6,23.11766]
[1725313350252,5.58633,2550.1,2549.6,23.11766]
[1725313351782,8.72353,2550.1,2549.6,23.11766]
[1725313352190,5.58633,2550.1,2549.6,23.11766]
[1725313352562,5.58633,2550.1,2549.6,19.98]
[1725313352964,5.58633,2550.1,2549.5,10.41784]
[1725313353405,5.58633,2550.1,2549.6,0.07472473]
[1725313353905,3.13732,2550.0,2549.6,0.07472473]
[1725313355781,5.58633,2550.1,2549.6,3.21246473]
[1725313355987,5.58633,2550.1,2549.6,4.74875306]
[1725313356382,8.72354,2550.1,2549.6,4.74875306]
[1725313356710,8.72354,2550.1,2549.6,1.61101306]
[1725313357911,6.27434,2550.1,2549.6,1.61101306]
[1725313358110,2.3312,2550.0,2549.6,1.61101306]
[1725313358574,5.46846,2550.0,2549.6,1.61101306]
[1725313359084,3.13739,2549.9,2549.6,1.61101306]
[1725313359410,3.13739,2549.9,2549.6,0.07472473]
[1725313359571,3.13751,2549.8,2549.6,0.07472473]
[1725313359982,3.13751,2549.8,2549.4,1.7325086]
[1725313360207,2.3312,2549.7,2549.5,0.07482978]
[1725313362718,5.46883,2549.7,2549.5,0.07482978]
[1725313363012,5.46883,2549.7,2549.2,3.13817]
[1725313363198,2.3312,2549.6,2549.3,0.07561683]
[1725313363398,5.46895,2549.6,2549.0,3.13841]
[1725313363596,8.60676,2549.6,2549.1,0.07582698]
[1725313364713,5.46895,2549.6,2549.1,0.07582698]
[1725313365076,8.60677,2549.6,2549.1,0.07582698]
[1725313365267,5.54697,2549.5,2549.1,0.07582698]
[1725313365673,3.13799,2549.4,2549.1,0.07582698]
[1725313365873,2.4893,2549.3,2549.1,0.07582698]
[1725313366095,5.62744,2549.3,2548.8,12.1511486]
[1725313366306,5.62744,2549.3,2549.2,0.0757219]
[1725313366622,5.62744,2549.3,2549.2,0.07591613]
[1725313366820,5.62744,2549.3,2548.8,15.2898086]
[1725313367020,5.62744,2549.3,2548.9,0.07623139]
[1725313368126,2.4893,2549.3,2548.9,3.21482139]
[1725313368289,2.4893,2549.3,2548.9,0.07623139]
[1725313368495,2.4893,2549.3,2548.9,1.61283539]
[1725313368679,2.4427,2549.6,2549.2,3.13815]
[1725313368880,2.4427,2549.5,2549.0,4.8709586]
[1725313369126,5.58066,2549.5,2549.3,0.07588876]
[1725313369291,3.13802,2549.4,2548.9,1.536604]
[1725313369480,2.4427,2549.3,2548.9,1.536604]
[1725313369676,2.4427,2549.3,2548.9,4.675204]
[1725313371217,2.4427,2549.3,2549.0,4.82108526]
[1725313371390,2.4427,2549.3,2549.1,3.13835]
[1725313371608,2.4427,2549.3,2549.0,4.82108526]
[1725313371810,2.4427,2549.3,2549.0,3.13845]
[1725313372010,2.4427,2549.3,2548.9,3.13855]
[1725313372326,2.4427,2549.3,2549.0,0.0761929]
[1725313372682,5.58082,2549.3,2549.0,0.0761929]
[1725313373082,5.58082,2549.3,2548.8,7.28]
[1725313373309,3.13812,2549.3,2549.1,0.07611001]
[1725313373510,2.4427,2549.2,2548.8,7.28]
[1725313373780,2.4427,2549.2,2548.7,4.8712386]
[1725313373986,2.4427,2549.2,2548.7,7.86569146]
[1725313375612,2.4427,2549.2,2548.8,3.13871]
[1725313378704,5.58094,2549.2,2548.8,3.13871]
[1725313379187,5.58094,2549.2,2548.7,3.13883]
[1725313379389,8.71924,2549.2,2548.7,3.13883]
[1725313380114,5.58094,2549.2,2548.7,3.13883]
[1725313380804,2.251,2549.1,2548.7,3.13883]
[1725313383323,2.251,2549.1,2548.9,3.13854]
[1725313384614,2.251,2549.1,2548.7,3.13883]
[1725313385637,2.251,2549.1,2548.7,3.13878]
[1725313387340,2.251,2549.1,2548.8,0.07692482]
[1725313391360,2.789924,2549.1,2548.8,0.07692482]
[1725313392675,2.251,2549.1,2548.8,0.07692482]
[1725313402078,5.4994,2548.9,2548.8,0.07692482]
[1725313402500,2.3608,2548.8,2548.4,3.53277]
[1725313405541,2.4037,2548.7,2548.4,3.53277]
[1725313405678,2.4037,2548.7,2548.4,0.3936]
[1725313406199,2.4037,2548.7,2548.4,3.53275]
[1725313412333,2.4037,2548.7,2548.4,0.3936]
[1725313412513,2.4037,2548.7,2548.3,3.264408]
[1725313412840,2.4037,2548.7,2548.3,3.658008]
[1725313414004,2.4037,2548.7,2548.3,6.797288]
[1725313416053,2.4037,2548.7,2548.3,3.657958]
[1725313416936,2.4037,2548.7,2548.3,3.264358]
[1725313417261,2.4037,2548.7,2548.4,0.07785617]
[1725313423460,2.3505,2548.9,2548.5,4.8715886]
[1725313423769,2.3505,2548.9,2548.6,0.07776252]
[1725313424067,1.7325086,2549.7,2548.7,6.2776]
[1725313424068,2.3505,2549.3,2548.7,6.2776]
[1725313424369,2.3505,2549.3,2548.8,0.07754673]
[1725313425038,2.3505,2549.3,2548.8,3.21625673]
[1725313426048,2.3505,2549.3,2548.8,0.07754673]
[1725313426253,2.3505,2549.3,2548.8,0.72989613]
[1725313426454,2.3505,2549.3,2548.9,3.13857]
[1725313426667,2.3505,2549.3,2549.0,0.0772088]
[1725313427082,2.326,2549.7,2549.2,3.13823]
[1725313427250,2.326,2549.9,2549.3,3.87501386]
[1725313427455,5.46339,2549.9,2549.4,0.07674407]
[1725313427655,5.46339,2549.9,2549.2,6.27638]
[1725313427860,2.326,2549.9,2549.4,3.13789]
[1725313428059,2.326,2550.2,2549.8,3.13742]
[1725313428262,2.326,2550.2,2549.9,0.07609118]
[1725313430456,2.326,2550.4,2549.9,0.07609118]
[1725313430778,2.326,2550.4,2549.9,0.40528551]
[1725313431181,3.1364,2550.7,2550.0,3.13724]
[1725313431182,2.326,2550.5,2550.0,3.13724]
[1725313431565,2.326,2550.5,2550.1,0.07553149]
[1725313433565,3.1364,2550.7,2550.1,0.67955807]
[1725313434642,3.1364,2550.7,2550.1,3.81666807]
[1725313437378,3.13617,2550.9,2550.3,2.4919]
[1725313437379,6.27241,2550.9,2550.3,2.4919]
[1725313437750,6.27241,2550.9,2550.4,0.07431732]
[1725313438274,7.17658017,2550.9,2550.4,0.07431732]
[1725313438736,3.13629,2550.8,2550.4,0.07431732]
[1725313439556,4.04034017,2550.9,2550.4,0.07431732]
[1725313439557,3.13617,2550.9,2550.4,0.07431732]
[1725313439882,3.13617,2550.9,2550.4,3.21107732]
[1725313440591,5.43883,2551.0,2550.4,3.21099732]
[1725313440886,3.33352886,2551.0,2550.5,3.13662]
[1725313441195,6.46962886,2551.0,2550.4,3.21099732]
[1725313441390,6.46962886,2551.0,2550.6,0.07394096]
[1725313441599,0.96055789,2550.9,2550.5,0.07404593]
[1725313441764,5.4389,2551.0,2550.4,6.27337]
[1725313441765,5.4389,2551.0,2550.7,0.07381937]
[1725313441958,5.4389,2551.0,2550.6,0.07392432]
[1725313442153,5.4389,2551.0,2550.8,0.07371442]
[1725313442382,0.857485,2550.9,2550.7,0.07381937]
[1725313442689,0.857485,2550.9,2550.4,3.13668]
[1725313443193,0.857485,2550.9,2550.4,6.27337]
[1725313443859,0.857485,2550.9,2550.4,3.13668]
[1725313444197,0.6296385,2550.8,2550.4,3.13668]
[1725313444753,0.6296385,2550.8,2550.5,3.13655]
[1725313444977,2.3028,2551.0,2550.5,3.13655]
[1725313445178,2.3028,2551.0,2550.4,5.53868]